[Event "44th Chess Olympiad Women 2022"]
[Site "Chennai"]
[Date "2022.08.09"]
[Round "11.39"]
[White "Perez, Dalila"]
[Black "A-ALI, Sali Abbas Abdulzahr"]
[Result "0-1"]
[ECO "E06"]
[WhiteElo "1799"]
[BlackElo "1864"]
[Annotator "NA COMBH"]
[PlyCount "168"]
[EventDate "2022.07.29"]
[EventType "team-tourn"]
[EventCountry "IND"]
[SourceTitle "playchess.com"]
[Source "ChessBase"]
[SourceQuality "1"]
[WhiteTeam "Paraguay"]
[BlackTeam "Iraq"]
[WhiteTeamCountry "PAR"]
[BlackTeamCountry "IRQ"]
[TimeControl "40/5400+30:1800+30"]

1. d4 {[%emt 0:00:03]} d5 {[%emt 0:00:06]} 2. Nf3 {[%emt 0:00:05]} Nf6 {[%emt 0:00:07]} 3. c4 {[%emt 0:00:05]} e6 {[%emt 0:00:07]} 4. g3 {[%emt 0:00:04]} Be7 {[%emt 0:00:07]} 5. Bg2 {[%emt 0:00:04]} O-O {[%emt 0:00:08]} 6. O-O {[%emt 0:00:06]} c5 {[%emt 0:00:57]} 7. cxd5 {[%emt 0:04:42]} Nxd5 {[%emt 0:02:30]} 8. dxc5 {[%emt 0:04:33]} Bxc5 {[%emt 0:00:09]} 9. a3 {[%emt 0:04:43]} a5 {[%emt 0:06:11]} 10. Qc2 {[%emt 0:04:00]} Qc7 {[%emt 0:03:14]} 11. e4 {[%emt 0:03:21]} Ne7 {[%emt 0:01:47]} 12. Bf4 {[%emt 0:07:57]} Qb6 {[%emt 0:01:05]} 13. Nc3 {[%emt 0:00:25]} Bd7 {[%emt 0:01:32]} 14. Rfd1 {[%emt 0:02:39]} Bc6 {[%emt 0:02:41]} 15. Ne5 {[%emt 0:06:04]} Rc8 {[%emt 0:03:13]} 16. Rac1 {[%emt 0:15:34]} Qa7 {[%emt 0:09:00]} 17. Nxc6 {[%emt 0:17:56]} bxc6 {[%emt 0:02:18]} 18. Bd6 {[%emt 0:02:07]} Bxd6 {[%emt 0:03:41]} 19. Rxd6 {[%emt 0:00:04]} Nd7 {[%emt 0:01:19]} 20. Rcd1 {[%emt 0:11:07]} Nf6 {[%emt 0:01:51]} 21. Na4 {[%emt 0:00:46]} Qc7 {[%emt 0:02:00]} 22. Nc5 {[%emt 0:00:23]} Ned5 {[%emt 0:04:30]} 23. e5 {[%emt 0:02:13]} Ne8 {[%emt 0:00:18]} 24. Rd7 {[%emt 0:06:25]} Qxe5 {[%emt 0:00:11]} 25. Nd3 {[%emt 0:01:59]} Qb8 {[%emt 0:02:12]} 26. Nc5 {[%emt 0:01:35]} Rc7 {[%emt 0:01:00]} 27. Rc1 {[%emt 0:01:09]} Nef6 {[%emt 0:01:14]} 28. Rxc7 {[%emt 0:01:08]} Qxc7 {[%emt 0:00:06]} 29. h4 {[%emt 0:00:39]} g6 {[%emt 0:02:15]} 30. Qe2 {[%emt 0:01:28]} Re8 {[%emt 0:01:39]} 31. Qc4 {[%emt 0:01:17]} Rc8 {[%emt 0:00:42]} 32. Qe2 {[%emt 0:00:50]} Kg7 {[%emt 0:02:53]} 33. Nd3 {[%emt 0:00:24]} Qd6 {[%emt 0:00:35]} 34. Ne5 {[%emt 0:00:45]} c5 {[%emt 0:00:23]} 35. Nc4 {[%emt 0:00:12]} Qc7 {[%emt 0:01:16]} 36. Qd2 {[%emt 0:00:59]} Ra8 {[%emt 0:00:26]} 37. Qd1 {[%emt 0:00:29]} Qc6 {[%emt 0:00:54]} 38. Ne5 {[%emt 0:00:22]} Qc7 {[%emt 0:01:26]} 39. Qe2 {[%emt 0:00:32]} Rc8 {[%emt 0:00:46]} 40. Nc4 {[%emt 0:00:20]} Ne7 {[%emt 0:01:37]} 41. Qd2 {[%emt 0:03:31]} a4 {[%emt 0:02:02]} 42. Qc2 {[%emt 0:03:12]} Qa7 {[%emt 0:00:08]} 43. Nd6 {[%emt 0:02:25]} Rd8 {[%emt 0:02:27]} 44. Nb5 {[%emt 0:01:08]} Qa5 {[%emt 0:01:22]} 45. Bf1 {[%emt 0:06:47]} Rc8 {[%emt 0:09:30]} 46. Nd6 {[%emt 0:03:46]} Rc6 {[%emt 0:01:49]} 47. Nc4 {[%emt 0:00:41]} Qa7 {[%emt 0:00:26]} 48. Ne5 {[%emt 0:00:42]} Rc7 {[%emt 0:01:15]} 49. Bb5 {[%emt 0:01:00]} Nf5 {[%emt 0:01:04]} 50. Qxa4 {[%emt 0:03:02]} Qxa4 {[%emt 0:01:54]} 51. Bxa4 {[%emt 0:00:02]} Nd4 {[%emt 0:02:37]} 52. Kf1 {[%emt 0:02:44]} Nd5 {[%emt 0:00:58]} 53. Nc4 {[%emt 0:01:37]} f6 {[%emt 0:01:54]} 54. Bc2 {[%emt 0:04:45]} Kf7 {[%emt 0:02:45]} 55. Bd1 {[%emt 0:01:14]} e5 {[%emt 0:00:29]} 56. Nd6+ {[%emt 0:00:58]} Ke6 {[%emt 0:01:02]} 57. Nc4 {[%emt 0:00:49]} f5 {[%emt 0:01:50]} 58. Ne3 {[%emt 0:00:48]} h5 {[%emt 0:08:46]} 59. Be2 {[%emt 0:00:25]} f4 {[%emt 0:02:41]} 60. Nxd5 {[%emt 0:00:09]} Kxd5 {[%emt 0:00:14]} 61. gxf4 {[%emt 0:00:52]} exf4 {[%emt 0:00:14]} 62. Bc4+ {[%emt 0:00:39]} Kd6 {[%emt 0:00:27]} 63. Bd3 {[%emt 0:00:27]} Rg7 {[%emt 0:00:46]} 64. b4 {[%emt 0:00:35]} cxb4 {[%emt 0:00:37]} 65. axb4 {[%emt 0:00:01]} g5 {[%emt 0:03:11]} 66. Rc5 {[%emt 0:00:55]} Nf3 {[%emt 0:01:45]} 67. hxg5 {[%emt 0:00:25]} Nxg5 {[%emt 0:00:13]} 68. Rf5 {[%emt 0:00:34]} f3 {[%emt 0:00:46]} 69. Ke1 {[%emt 0:00:28]} h4 {[%emt 0:00:17]} 70. Rf6+ {[%emt 0:00:29]} Kd5 {[%emt 0:00:55]} 71. Rh6 {[%emt 0:00:27]} h3 {[%emt 0:00:34]} 72. Bf5 {[%emt 0:00:36]} Re7+ {[%emt 0:01:08]} 73. Kf1 {[%emt 0:00:40]} Rb7 {[%emt 0:00:41]} 74. Rh5 {[%emt 0:00:28]} h2 {[%emt 0:10:09]} 75. Rxh2 {[%emt 0:00:04]} Ke5 {[%emt 0:00:07]} 76. Bd3 {[%emt 0:00:51]} Rd7 {[%emt 0:01:36]} 77. Rh5 {[%emt 0:00:32]} Rxd3 {[%emt 0:00:31]} 78. Rxg5+ {[%emt 0:00:33]} Kf4 {[%emt 0:00:07]} 79. Kg1 {[%emt 0:00:30]} Kxg5 {[%emt 0:00:06]} 80. Kh2 {[%emt 0:00:22]} Kf4 {[%emt 0:00:11]} 81. b5 {[%emt 0:00:07]} Rb3 {[%emt 0:00:07]} 82. b6 {[%emt 0:00:08]} Rxb6 {[%emt 0:00:05]} 83. Kg1 {[%emt 0:00:23]} Rb1+ {[%emt 0:00:06]} 84. Kh2 {[%emt 0:00:22]} Rf1 {[%emt 0:00:06]} 0-1

[Event "44th Chess Olympiad Women 2022"]
[Site "Chennai"]
[Date "2022.08.09"]
[Round "11.39"]
[White "Sara Masood Abdullah"]
[Black "Oviedo Acosta, Paula"]
[Result "1-0"]
[ECO "B84"]
[WhiteElo "1677"]
[BlackElo "1855"]
[Annotator "NA COMBH"]
[PlyCount "109"]
[EventDate "2022.07.29"]
[EventType "team-tourn"]
[EventCountry "IND"]
[SourceTitle "playchess.com"]
[Source "ChessBase"]
[SourceQuality "1"]
[WhiteTeam "Iraq"]
[BlackTeam "Paraguay"]
[WhiteTeamCountry "IRQ"]
[BlackTeamCountry "PAR"]
[TimeControl "40/5400+30:1800+30"]

1. e4 {[%emt 0:00:04]} c5 {[%emt 0:00:11]} 2. Nf3 {[%emt 0:00:04]} e6 {[%emt 0:00:17]} 3. d4 {[%emt 0:00:12]} cxd4 {[%emt 0:00:18]} 4. Nxd4 {[%emt 0:00:05]} a6 {[%emt 0:00:38]} 5. Nc3 {[%emt 0:00:32]} b5 {[%emt 0:01:01]} 6. a3 {[%emt 0:00:37]} Bb7 {[%emt 0:01:04]} 7. Be2 {[%emt 0:01:17]} Qc7 {[%emt 0:01:22]} 8. O-O {[%emt 0:01:20]} d6 {[%emt 0:01:21]} 9. f4 {[%emt 0:01:59]} Nd7 {[%emt 0:01:01]} 10. Kh1 {[%emt 0:06:10]} Ngf6 {[%emt 0:04:41]} 11. Bf3 {[%emt 0:01:46]} Be7 {[%emt 0:02:21]} 12. Qe1 {[%emt 0:05:41]} Rc8 {[%emt 0:02:39]} 13. Be3 {[%emt 0:01:30]} O-O {[%emt 0:02:27]} 14. Qg3 {[%emt 0:02:09]} Rfe8 {[%emt 0:01:55]} 15. Rad1 {[%emt 0:04:37]} Bf8 {[%emt 0:03:50]} 16. f5 {[%emt 0:06:15]} d5 {[%emt 0:02:59]} 17. fxe6 {[%emt 0:12:02]} Qxg3 {[%emt 0:07:05]} 18. exf7+ {[%emt 0:00:43]} Kxf7 {[%emt 0:00:06]} 19. hxg3 {[%emt 0:00:29]} dxe4 {[%emt 0:01:07]} 20. Bh5+ {[%emt 0:01:40]} g6 {[%emt 0:00:07]} 21. Bg4 {[%emt 0:00:14]} Re7 {[%emt 0:03:51]} 22. Bg5 {[%emt 0:02:36]} Bg7 {[%emt 0:02:26]} 23. Ne6 {[%emt 0:03:11]} Ne5 {[%emt 0:09:29]} 24. Bxf6 {[%emt 0:05:26]} Nxg4 {[%emt 0:01:18]} 25. Ng5+ {[%emt 0:01:28]} Ke8 {[%emt 0:06:22]} 26. Bxe7 {[%emt 0:00:21]} h6 {[%emt 0:00:40]} 27. Ngxe4 {[%emt 0:02:28]} Bxe4 {[%emt 0:05:21]} 28. Nxe4 {[%emt 0:00:36]} Kxe7 {[%emt 0:00:11]} 29. Rfe1 {[%emt 0:08:37]} Be5 {[%emt 0:04:54]} 30. c3 {[%emt 0:00:40]} Rc6 {[%emt 0:02:10]} 31. Kg1 {[%emt 0:02:07]} Ke6 {[%emt 0:08:43]} 32. Nf2 {[%emt 0:02:16]} Nxf2 {[%emt 0:04:50]} 33. Kxf2 {[%emt 0:00:05]} Rc7 {[%emt 0:01:01]} 34. Rd4 {[%emt 0:01:50]} Rf7+ {[%emt 0:02:33]} 35. Rf4 {[%emt 0:00:12]} Rd7 {[%emt 0:00:16]} 36. Rfe4 {[%emt 0:01:12]} Rd2+ {[%emt 0:01:17]} 37. Kf3 {[%emt 0:01:20]} Rd3+ {[%emt 0:00:49]} 38. R1e3 {[%emt 0:00:18]} Rd5 {[%emt 0:00:06]} 39. b3 {[%emt 0:00:23]} Kf6 {[%emt 0:01:46]} 40. c4 {[%emt 0:00:39]} bxc4 {[%emt 0:00:05]} 41. Rxc4 {[%emt 0:30:06]} Rd6 {[%emt 0:32:37]} 42. Ke4 {[%emt 0:01:17]} Bb2 {[%emt 0:01:03]} 43. a4 {[%emt 0:01:34]} h5 {[%emt 0:00:18]} 44. b4 {[%emt 0:01:27]} Rd2 {[%emt 0:02:05]} 45. Rc6+ {[%emt 0:01:05]} Kg5 {[%emt 0:00:07]} 46. Rd3 {[%emt 0:00:40]} Rxg2 {[%emt 0:03:37]} 47. Kf3 {[%emt 0:00:15]} Rg1 {[%emt 0:00:31]} 48. Rd5+ {[%emt 0:00:23]} Kh6 {[%emt 0:01:21]} 49. Rdd6 {[%emt 0:00:29]} Bg7 {[%emt 0:00:39]} 50. Rxg6+ {[%emt 0:00:12]} Kh7 {[%emt 0:00:06]} 51. Rxa6 {[%emt 0:00:15]} Rf1+ {[%emt 0:00:14]} 52. Kg2 {[%emt 0:01:14]} Rb1 {[%emt 0:00:27]} 53. b5 {[%emt 0:00:12]} Rb2+ {[%emt 0:03:12]} 54. Kh3 {[%emt 0:00:19]} Rb1 {[%emt 0:02:52]} 55. Rge6 {[%emt 0:00:42]} 1-0

[Event "44th Chess Olympiad Women 2022"]
[Site "Chennai"]
[Date "2022.08.09"]
[Round "11.39"]
[White "Al-Fayyadh, Yamama Asif Abdula"]
[Black "Mayeregger Gonzalez, Renata"]
[Result "1/2-1/2"]
[ECO "B01"]
[WhiteElo "1666"]
[BlackElo "1479"]
[Annotator "NA RC COMBH"]
[PlyCount "137"]
[EventDate "2022.07.29"]
[EventType "team-tourn"]
[EventCountry "IND"]
[SourceTitle "playchess.com"]
[Source "ChessBase"]
[SourceQuality "1"]
[WhiteTeam "Iraq"]
[BlackTeam "Paraguay"]
[WhiteTeamCountry "IRQ"]
[BlackTeamCountry "PAR"]
[TimeControl "40/5400+30:1800+30"]

1. e4 {[%emt 0:00:12]} d5 {[%emt 0:00:08]} 2. exd5 {[%emt 0:00:02]} Nf6 {[%emt 0:00:13]} 3. d4 {[%emt 0:00:12]} Qxd5 {[%emt 0:00:11]} 4. Nc3 {[%emt 0:00:23]} Qa5 {[%emt 0:00:18]} 5. Nf3 {[%emt 0:01:02]} Bg4 {[%emt 0:01:07]} 6. h3 {[%emt 0:00:43]} Bxf3 {[%emt 0:00:18]} 7. Qxf3 {[%emt 0:00:29]} c6 {[%emt 0:00:18]} 8. Bc4 {[%emt 0:04:24]} e6 {[%emt 0:02:36]} 9. O-O {[%emt 0:17:13]} Bd6 {[%emt 0:01:06]} 10. Bb3 {[%emt 0:03:00]} Nbd7 {[%emt 0:03:11]} 11. Bd2 {[%emt 0:09:52]} Qc7 {[%emt 0:03:28]} 12. Rfe1 {[%emt 0:02:17]} O-O-O {[%emt 0:06:50]} 13. Ne2 {[%emt 0:04:51]} Kb8 {[%emt 0:13:58]} 14. c4 {[%emt 0:06:16]} c5 {[%emt 0:04:44]} 15. dxc5 {[%emt 0:11:48]} Nxc5 {[%emt 0:03:01]} 16. Bc2 {[%emt 0:02:12]} Bh2+ {[%emt 0:03:28]} 17. Kh1 {[%emt 0:02:33]} Rxd2 {[%emt 0:04:28]} 18. Qc3 {[%emt 0:01:43]} Bf4 {[%emt 0:09:39]} 19. b4 {[%emt 0:04:42]} Nce4 {[%emt 0:02:37]} 20. Bxe4 {[%emt 0:01:56]} Nxe4 {[%emt 0:00:26]} 21. Qf3 {[%emt 0:00:59]} Be5 {[%emt 0:03:36]} 22. Qxe4 {[%emt 0:01:48]} Bxa1 {[%emt 0:02:19]} 23. Rxa1 {[%emt 0:00:34]} Rhd8 {[%emt 0:02:03]} 24. c5 {[%emt 0:04:24]} Qc6 {[%emt 0:06:47]} 25. Qh4 {[%emt 0:06:26]} f6 {[%emt 0:05:07]} 26. Nc3 {[%emt 0:03:47]} R2d3 {[%emt 0:08:31]} 27. Rc1 {[%emt 0:02:13]} Qc7 {[%emt 0:02:34]} 28. Qh5 {[%emt 0:04:19]} Qf4 {[%emt 0:02:15]} 29. Ne2 {[%emt 0:03:14]} Qxb4 {[%emt 0:06:49]} 30. Kh2 {[%emt 0:01:17]} h6 {[%emt 0:01:29]} 31. c6 {[%emt 0:00:15]} Qd6+ {[%emt 0:00:20]} 32. Ng3 {[%emt 0:00:18]} bxc6 {[%emt 0:00:20]} 33. Qa5 {[%emt 0:00:53]} Ka8 {[%emt 0:00:46]} 34. Qa6 {[%emt 0:00:17]} Ra3 {[%emt 0:00:42]} 35. Qc4 {[%emt 0:00:31]} h5 {[%emt 0:01:18]} 36. Kg1 {[%emt 0:00:25]} Qd5 {[%emt 0:00:42]} 37. Qb4 {[%emt 0:00:33]} Rd3 {[%emt 0:00:20]} 38. Kh2 {[%emt 0:00:45]} Rd4 {[%emt 0:00:24]} 39. Qc3 {[%emt 0:00:20]} h4 {[%emt 0:00:18]} 40. Ne2 {[%emt 0:00:39]} Qd6+ {[%emt 0:01:06]} 41. Kh1 {[%emt 0:30:19]} Rd1+ {[%emt 0:30:21]} 42. Rxd1 {[%emt 0:00:19]} Qxd1+ {[%emt 0:00:13]} 43. Ng1 {[%emt 0:00:16]} Qa4 {[%emt 0:00:00]} 44. Qc5 {[%emt 0:00:00]} e5 {[%emt 0:00:00]} 45. Qe7 {[%emt 0:00:00]} Qd4 {[%emt 0:00:00]} 46. Qxg7 {[%emt 0:00:00]} Qxf2 {[%emt 0:00:00]} 47. Qc7 {[%emt 0:00:00]} Qb6 {[%emt 0:00:00]} 48. Qe7 {[%emt 0:00:00]} c5 {[%emt 0:00:00]} 49. Ne2 {[%emt 0:00:00]} Qd6 {[%emt 0:00:00]} 50. Qh7 {[%emt 0:00:00]} Qd1+ {[%emt 0:00:00]} 51. Ng1 {[%emt 0:00:00]} Qd4 {[%emt 0:00:00]} 52. Nf3 {[%emt 0:00:00]} Qf4 {[%emt 0:00:00]} 53. Qc2 {[%emt 0:00:00]} c4 {[%emt 0:00:00]} 54. Qa4 {[%emt 0:00:00]} Qe4 {[%emt 0:00:00]} 55. Qa6 {[%emt 0:00:00]} c3 {[%emt 0:00:00]} 56. Qxf6 {[%emt 0:00:52]} Rd1+ {[%emt 0:00:00]} 57. Ng1 {[%emt 0:00:19]} Rxg1+ {[%emt 0:02:25]} 58. Kxg1 {[%emt 0:00:14]} Qe3+ {[%emt 0:00:07]} 59. Kf1 {[%emt 0:01:58]} Qd4 {[%emt 0:04:19]} 60. Qc6+ {[%emt 0:00:56]} Kb8 {[%emt 0:00:29]} 61. Qb5+ {[%emt 0:01:51]} Kc7 {[%emt 0:00:41]} 62. Qa5+ {[%emt 0:00:19]} Kd6 {[%emt 0:00:13]} 63. Qa6+ {[%emt 0:00:52]} Kd5 {[%emt 0:00:17]} 64. Qb7+ {[%emt 0:00:31]} Kc4 {[%emt 0:00:22]} 65. Qb3+ {[%emt 0:00:50]} Kd3 {[%emt 0:01:01]} 66. Qd1+ {[%emt 0:00:36]} Kc4 {[%emt 0:01:18]} 67. Qa4+ {[%emt 0:00:16]} Kd5 {[%emt 0:00:17]} 68. Qd7+ {[%emt 0:00:09]} Kc5 {[%emt 0:00:59]} 69. Qxa7+ {[%emt 0:01:42]} 1/2-1/2

[Event "44th Chess Olympiad Women 2022"]
[Site "Chennai"]
[Date "2022.08.09"]
[Round "11.40"]
[White "Enomah Emmanuella Trust"]
[Black "Al Mansouri, Moza"]
[Result "0-1"]
[ECO "A36"]
[WhiteElo "1901"]
[BlackElo "1606"]
[Annotator "TA"]
[PlyCount "80"]
[EventDate "2022.07.29"]
[EventType "team-tourn"]
[EventCountry "IND"]
[SourceTitle "playchess.com"]
[Source "ChessBase"]
[SourceQuality "1"]
[WhiteTeam "Nigeria"]
[BlackTeam "United Arab Emirates"]
[WhiteTeamCountry "NGR"]
[BlackTeamCountry "UAE"]
[TimeControl "40/5400+30:1800+30"]

{[%evp 17,80,4,3,-27,-10,-20,-15,-23,-22,-30,-26,-68,-66,-49,0,0,0,-59,-59,-59,-59,-144,-92,-103,-81,-155,-85,-86,-89,-98,-65,-75,-78,-111,-100,-88,-69,-94,-38,-87,-101,-108,-98,-162,-87,-196,-80,-272,-205,-250,-247,-325,-327,-316,-248,-656,-612,-625,-613,-916,-894,-1174,-1182,-29983,-29984]} 1. c4 {[%emt 0:00:03]} c5 {[%emt 0:00:13]} 2. g3 {[%emt 0:00:04]} g6 {[%emt 0:00:13]} 3. Bg2 {[%emt 0:00:05]} Bg7 {[%emt 0:00:07]} 4. Nc3 {[%emt 0:00:05]} Nc6 {[%emt 0:00:11]} 5. e4 {[%emt 0:00:07]} e5 {[%emt 0:01:13]} 6. Nge2 {[%emt 0:00:17]} Nge7 {[%emt 0:00:16]} 7. d3 {[%emt 0:00:11]} O-O {[%emt 0:01:03]} 8. O-O {[%emt 0:00:12]} d6 {[%emt 0:01:40]} 9. Be3 {[%emt 0:00:13]} Be6 {[%emt 0:03:02]} 10. h3 {[%emt 0:00:04] A36: Symmetrical English vs ...g6: 4 Bg2 Bg7.} f5 {[%emt 0:08:02]} 11. Nd5 {[%emt 0:00:39]} Rb8 {[%emt 0:03:48] [#]} 12. Qd2 $146 {[%emt 0:04:48] The position is equal.} ({Predecessor:} 12. a4 h6 13. Qd2 Kh7 14. f4 Nd4 15. Nxd4 cxd4 16. Bf2 fxe4 17. Bxe4 Bxh3 18. Rfe1 {0-1 (57) Hughes,A (1873)-Cramling Bellon,A (2035) Chess.com INT 2021}) 12... Qd7 {[%emt 0:03:49][%cal Of5f4]} 13. Kh2 {[%emt 0:00:06]} b5 {[%emt 0:02:18]} 14. Rab1 {[%emt 0:03:28]} bxc4 {[%emt 0:03:07]} 15. dxc4 {[%emt 0:00:12]} fxe4 {[%emt 0:01:10]} (15... Nd4 $15) 16. Nec3 $11 {[%emt 0:00:38]} Nd4 {[%emt 0:08:39]} 17. Nxe4 {[%emt 0:03:26]} (17. Nxe7+ $1 $11 Qxe7 18. b3) 17... Bxd5 $15 {[%emt 0:01:03]} 18. cxd5 {[%emt 0:00:38]} Nxd5 {[%emt 0:00:11]} 19. Bxd4 {[%emt 0:05:07]} (19. Rbc1 $15) 19... exd4 {[%emt 0:02:10]} ({Better is} 19... cxd4 20. h4 Ne7) 20. Ng5 {[%emt 0:01:31]} Nf6 {[%emt 0:06:32]} 21. Qc2 {[%emt 0:01:19] [#]} ({White should play} 21. Rbe1) 21... Bh6 {[%emt 0:04:32]} ({Black should try} 21... Qf5 $1 {[%cal Rf5c2]} 22. Qxf5 gxf5) 22. Ne4 {[%emt 0:00:47]} Nxe4 {[%emt 0:00:42]} 23. Qxe4 {[%emt 0:00:06]} Rbe8 {[%emt 0:03:08]} 24. Qd5+ {[%emt 0:00:20]} Kh8 {[%emt 0:00:22] Black is more active.} 25. Qc4 {[%emt 0:00:48]} Qe6 {[%emt 0:01:33]} 26. Qa6 {[%emt 0:00:19]} Qe7 {[%emt 0:07:13]} 27. b4 $1 {[%emt 0:02:17]} Rb8 {[%emt 0:02:45]} (27... Bg7 $17 28. bxc5 dxc5) 28. Rbe1 {[%emt 0:00:17] Against Qe2} (28. bxc5 $15 dxc5 29. Rfe1) 28... Qc7 $36 {[%emt 0:01:51][%mdl 2048] Black has strong initiative.} 29. bxc5 {[%emt 0:04:41]} dxc5 {[%emt 0:00:10][%cal Bd6c5,Bc5c4,Bc4c3,Bc3c2][%mdl 32]} 30. Re2 {[%emt 0:01:09]} (30. Re6 $17 {is a better defense.}) 30... Qb6 {[%emt 0:08:18]} (30... c4 $19 {Strongly threatening ...d3.} 31. Qa3 Rbc8) 31. Qa3 {[%emt 0:04:09]} (31. Qd3 $17) 31... a5 {[%emt 0:06:31]} (31... c4 $19 {and Black stays clearly on top. Threatens to win with ...d3.} 32. Qa4 Qc5) 32. Re5 $2 {[%emt 0:01:03] White does not recover from this.} (32. Rc2 $17) 32... Rbc8 {[%emt 0:01:31]} 33. Qb3 {[%emt 0:00:32]} Qc7 {[%emt 0:10:00]} 34. Re6 {[%emt 0:00:17]} c4 {[%emt 0:00:49]} 35. Qa4 {[%emt 0:00:37]} Qa7 {[%emt 0:01:57]} 36. Bd5 $2 {[%emt 0:01:57]} (36. Rb1 Qf7 37. Ra6) 36... d3 {[%emt 0:02:31][%cal Bd4d3,Bd3d2][%mdl 32] [#] And now ...c3 would win.} 37. f4 {[%emt 0:00:12]} c3 {[%emt 0:00:17] ...c2 is the strong threat.} 38. Qd1 {[%emt 0:03:50]} Qd4 {[%emt 0:01:51]} 39. Bb3 {[%emt 0:00:29]} c2 {[%emt 0:00:37]} 40. Qc1 {[%emt 0:01:15]} d2 {[%emt 0:00:27] Weighted Error Value: White=0.86/Black=0.22 (precise)} 0-1

[Event "44th Chess Olympiad Women 2022"]
[Site "Chennai"]
[Date "2022.08.09"]
[Round "11.40"]
[White "Ogbiyoyo, Perpetual Eloho"]
[Black "Rouda Essa, Alserkal"]
[Result "0-1"]
[ECO "C66"]
[WhiteElo "1886"]
[BlackElo "1874"]
[Annotator "NA COMBH"]
[PlyCount "106"]
[EventDate "2022.07.29"]
[EventType "team-tourn"]
[EventCountry "IND"]
[SourceTitle "playchess.com"]
[Source "ChessBase"]
[SourceQuality "1"]
[WhiteTeam "Nigeria"]
[BlackTeam "United Arab Emirates"]
[WhiteTeamCountry "NGR"]
[BlackTeamCountry "UAE"]
[TimeControl "40/5400+30:1800+30"]

1. e4 {[%emt 0:00:23]} e5 {[%emt 0:00:04]} 2. Nf3 {[%emt 0:00:11]} Nc6 {[%emt 0:00:04]} 3. Nc3 {[%emt 0:00:06]} Nf6 {[%emt 0:00:08]} 4. Bb5 {[%emt 0:00:15]} d6 {[%emt 0:06:17]} 5. d4 {[%emt 0:00:24]} exd4 {[%emt 0:00:42]} 6. Nxd4 {[%emt 0:00:21]} Bd7 {[%emt 0:00:26]} 7. Bg5 {[%emt 0:01:50]} Be7 {[%emt 0:01:17]} 8. O-O {[%emt 0:04:20]} O-O {[%emt 0:03:18]} 9. Re1 {[%emt 0:02:26]} a6 {[%emt 0:06:20]} 10. Bxc6 {[%emt 0:00:43]} bxc6 {[%emt 0:01:22]} 11. Qd3 {[%emt 0:01:00]} c5 {[%emt 0:11:49]} 12. Nf3 {[%emt 0:03:32]} Be6 {[%emt 0:08:14]} 13. Rad1 {[%emt 0:01:42]} Nh5 {[%emt 0:07:21]} 14. Bxe7 {[%emt 0:05:33]} Qxe7 {[%emt 0:00:08]} 15. e5 {[%emt 0:01:58]} Rfd8 {[%emt 0:07:41]} 16. Qe4 {[%emt 0:04:15]} Rab8 {[%emt 0:13:03]} 17. g4 {[%emt 0:16:16]} Rb4 {[%emt 0:05:18]} 18. exd6 {[%emt 0:00:39]} Qf8 {[%emt 0:01:00]} 19. dxc7 {[%emt 0:05:11]} Rc8 {[%emt 0:03:11]} 20. Qe5 {[%emt 0:05:46]} Rxg4+ {[%emt 0:01:24]} 21. Kh1 {[%emt 0:00:11]} Nf6 {[%emt 0:05:30]} 22. Ng5 {[%emt 0:01:12]} Bd7 {[%emt 0:07:57]} 23. Rd6 {[%emt 0:05:41]} Re8 {[%emt 0:03:04]} 24. Qxe8 {[%emt 0:01:07]} Nxe8 {[%emt 0:00:12]} 25. Rxd7 {[%emt 0:00:19]} Nxc7 {[%emt 0:00:19]} 26. Rxc7 {[%emt 0:01:27]} Rxg5 {[%emt 0:01:12]} 27. Rce7 {[%emt 0:00:17]} Qa8+ {[%emt 0:00:21]} 28. R1e4 {[%emt 0:02:24]} Kf8 {[%emt 0:00:24]} 29. f4 {[%emt 0:00:47]} Rg4 {[%emt 0:02:26]} 30. Nd5 {[%emt 0:02:35]} Qd8 {[%emt 0:03:32]} 31. h3 {[%emt 0:03:10]} Rg6 {[%emt 0:01:11]} 32. f5 {[%emt 0:00:52]} Rd6 {[%emt 0:00:17]} 33. c4 {[%emt 0:01:08]} Rxd5 {[%emt 0:00:23]} 34. Re8+ {[%emt 0:06:50]} Qxe8 {[%emt 0:00:05]} 35. Rxe8+ {[%emt 0:00:05]} Kxe8 {[%emt 0:00:02]} 36. cxd5 {[%emt 0:00:04]} Ke7 {[%emt 0:00:06]} 37. Kg2 {[%emt 0:00:07]} Kd6 {[%emt 0:00:07]} 38. Kf3 {[%emt 0:00:33]} Kxd5 {[%emt 0:00:05]} 39. Kf4 {[%emt 0:00:36]} f6 {[%emt 0:00:14]} 40. Ke3 {[%emt 0:04:18]} c4 {[%emt 0:01:00]} 41. h4 {[%emt 0:30:35]} h5 {[%emt 0:31:00]} 42. a3 {[%emt 0:02:12]} Ke5 {[%emt 0:02:21]} 43. a4 {[%emt 0:00:18]} Kxf5 {[%emt 0:00:00]} 44. Kd4 {[%emt 0:00:00]} Ke6 {[%emt 0:00:00]} 45. Kxc4 {[%emt 0:00:00]} Kd6 {[%emt 0:00:00]} 46. b4 {[%emt 0:00:00]} Kc6 {[%emt 0:00:00]} 47. Kd4 {[%emt 0:00:00]} g5 {[%emt 0:00:00]} 48. hxg5 {[%emt 0:00:00]} fxg5 {[%emt 0:00:00]} 49. Ke4 {[%emt 0:00:00]} g4 {[%emt 0:00:00]} 50. Kf4 {[%emt 0:00:00]} Kd5 {[%emt 0:00:00]} 51. Kg3 {[%emt 0:00:00]} Kc4 {[%emt 0:00:00]} 52. b5 {[%emt 0:00:00]} axb5 {[%emt 0:00:00]} 53. a5 {[%emt 0:00:00]} Kc5 {[%emt 0:00:00]} 0-1